{"text_format":"1","workbook":"xlsx","n_sheets":2,"sheets":["MATRIX","Categories"],"not_rendered":{"charts":0,"images":1,"macros":1,"external_links":0,"defined_names":0,"comments":0,"pivot_tables":0},"unopened":[],"bounds":{"document_bytes":16777216,"sheet_cells":100000,"rows_first":2000,"rows_last":500,"rows_between":2000,"halvings":0,"cell_chars":16384,"cell_head_chars":4096},"cells_cut":0,"cells_raw":0,"read":"whole","date_system":"1900"}

{"sheet":"MATRIX","index":0,"n_rows":134,"n_cols":18,"rows_kept":134,"cut":false,"hidden":false,"merged":[[133,17,134,17],[33,17,40,17],[42,17,49,17],[51,17,64,17],[66,17,80,17],[82,17,95,17],[97,17,104,17],[129,17,131,17],[81,1,81,17],[65,1,65,17],[133,2,134,14],[42,1,49,1],[106,1,127,1],[106,16,127,16],[106,17,127,17],[128,1,128,17],[2,2,2,14],[133,1,134,1],[133,16,134,16],[66,1,80,1],[129,1,131,1],[129,16,131,16],[51,16,64,16],[66,16,80,16],[82,16,95,16],[97,16,104,16],[82,1,95,1],[51,1,64,1],[97,1,104,1],[33,16,40,16],[42,16,49,16],[33,1,40,1],[105,1,105,17],[6,17,14,17],[16,1,31,1],[16,16,31,16],[16,17,31,17],[32,1,32,17],[6,1,14,1],[6,16,14,16]]}
[]
[]
[null,null,"Energy Efficiency programmes in the building sector implemented in the Energy Community Contracting Parties"]
[]
[null,null,"Donor/IFI","Name of Project","Type of Financing","Status","Type of building category","Type of intervention","Budget MEUR","Level","Start","End","Number of buildings","Energy Savings in KWh","Co2 Saving in Kt Co2eq","Other Benefits","Total Energy Savings per country","Total Co2 Savings per country"]
[]
[null,"Albania","GGF","Banka Kombetare Tregtare","Loan","Ongoing","Factories, warehouses, etc.",null,25,null,2012,null,null,null,null,null,{"$f":"SUM(N7:N12)","v":68000000},{"$f":"SUM(O7:O12)","v":21250}]
[null,null,"EBRD","Fondi BESA","Loan","Ongoing","Single dwellings, Apartments/multi-residential dwellings",null,1.5,"National",null,null,null,68000000,21250]
[null,null,"EBRD","loan to Union Bank Albania ","Loan","Ongoing","Single dwellings, Apartments/multi-residential dwellings","Decentralized RES, Heating and Cooling",6,"National"]
[null,null,"GGF","Launching NLB Razvojna banka a.d. Banja Luka's new energy efficiency loan program","Loan, Other",null,"Single dwellings, Apartments/multi-residential dwellings, Retail and Services","Decentralized RES, Heating and Cooling",5,null,2011]
[null,null,"KfW","Program for energy-efficient renovation of dormitories at the University of Tirana, Phase I and II","Grant, Loan","Ongoing","Education and Research","General improvements",6.5,"Municipal"]
[null,null,"KfW","Program for energy-efficient rehabilitation of dormitories at the University of Tirana, Phase I and II","Grant, Loan","Ongoing","Education and Research","General improvements",3,"Municipal"]
[null,null,"EBRD, EU","EBRD, EU and Austria Promote Energy Efficiency ","Grant, Loan","Ongoing","Single dwellings, Apartments/multi-residential dwellings",null,7,null,2020]
[]
[]
[]
[null,"Bosnia and Herzegovina","EBRD","Green residential loans to UniCredit ","Loan","Ongoing","Single dwellings, Apartments/multi-residential dwellings","Doors and windows, Heating and Cooling, Insulation, Decentralized RES",12,"Municipal",2017,null,null,null,null,null,{"$f":"SUM(N17:N28)","v":101200000},{"$f":"SUM(O17:O28)","v":51.86}]
[null,null,"EBRD","Loan to microfinance provider MKF Partner","Loan","Ongoing","Single dwellings, Apartments/multi-residential dwellings, Retail and Services",null,5,"National",2018]
[null,null,"GGF","Senior loan to MCF Sunrise","Loan","Ongoing",null,null,1.5,"National",2018,null,null,5500000,2.1]
[null,null,"GGF","Senior loan investment in Partner Microcredit Foundation (Partner MCF)","Loan","Ongoing","Single dwellings","Insulation",5,"National",2017,null,null,41000000,12.4]
[null,null,"GGF","enhancing Microcredit Foundation LIDER’s green lending portfolio","Loan","Ongoing","Single dwellings, Apartments/multi-residential dwellings, Factories, warehouses, etc.","Decentralized RES",1,"National",2019]
[null,null,"GGF","developing and marketing dedicated energy-efficiency lending products by Mikrofin","Loan","Ongoing","Single dwellings, Apartments/multi-residential dwellings, Factories, warehouses, etc.","Doors and windows, Insulation",2,null,2019]
[null,null,"GGF","To launch the first energy efficiency-specific product in Bosnia and Herzegovina's microfinance sector through Partner MCF","Loan",null,"Single dwellings, Apartments/multi-residential dwellings, Factories, warehouses, etc.","Doors and windows, Heating and Cooling, Insulation",1.5,"National",2012,null,null,5100000,1.7]
[null,null,"GGF","Credit line to strengthen  UniCredit Bank a.d.’s lending capacity for EE projects at the retail and MSME levels","Loan, Other",null,"Single dwellings, Apartments/multi-residential dwellings, Retail and Services","Doors and windows, Heating and Cooling, Insulation, Decentralized RES",10,"Municipal",2013,null,null,37000000,30.86]
[null,null,"GGF","senior loan contract to expand Microcredit Foundation's lending activities predominantly in the rural parts of Bosnia and Herzegovina","Loan",null,"Single dwellings","Doors and windows, Heating and Cooling, Insulation",4,"National",2014,null,null,12600000,4.5]
[null,null,"Other","Green economic development (GED) financed by the Government of Sweden, the Environmental Fund of the Federation of Bosnia and Herzegovina and the Environmental Protection and Energy Efficiency Fund of Republika Srpska and implemented by UNDP",null,null,"Education and Research, Health care, Public, government buildings","General improvements",null,null,2013,2018,137,null,0.3,"Annual savings:\n-4 million KM in public budgets;\n-300 tonnes CO2 emissions;\n-55% of energy consumptions.\nOther benefits:\n+creating over 700 green jobs,\n+improving working and living conditions for over 109,000 users."]
[null,null,"KfW"," Credit Program for Energy Efficiency Improvements in Residential Housing ","Loan, Grant","Ongoing","Apartments/multi-residential dwellings, Single dwellings, Retail and Services, Offices, Other types of energy-consuming buildings","General improvements, Doors and windows, Heating and Cooling, Insulation, Automation, Deep renovation",18.5,null,2018,2025,null,null,null,"20% reduction of CO2- emissions; 20% reduction in energy consumption"]
[null,null,"KfW","Energy efficiency in public buildings","Loan, Grant","Ongoing","Education and Research","General improvements, Doors and windows, Heating and Cooling, Insulation",19.5,"National",2020,2023,40,null,null,"Expected energy demand of building stock reduced by at least 30%;\nGreater comfort level of pupils and teachers, poverty alleviation through focus on underdeveloped parts of the country "]
[null,null,"WB","Energy Efficiency Project (BEEP AF)","ESCO, Other","Ongoing","Education and Research, Health care, Public, government buildings",null,27.3,"National",2014,2024,174,1322527,504.65300000000002]
[]
[]
[]
[]
[null,"Kosovo*","EBRD"," loan to finance institution Kreditimi Rural i Kosoves (KrK), TEB Banka në Kosovë, Agjencioni për Financim në Kosovë (AFK)","Loan","Ongoing","Single dwellings, Apartments/multi-residential dwellings","Doors and windows, Heating and Cooling, Insulation, Decentralized RES",8.5,"National",2017,null,null,null,null,null,{"$f":"SUM(N34:N41)","v":26400000},{"$f":"SUM(O34:O41)","v":120.2}]
[null,null,"EBRD","Kosovo Sustainable Energy Projects (KoSEP)","Loan","Finished","Single dwellings, Apartments/multi-residential dwellings","Doors and windows, Insulation",12,"National",2010,2015,3100,25000000]
[null,null,"GGF","senior loan to Agjencioni për Financim në Kosovë (AFK)","Loan, Other","Ongoing","Single dwellings, Apartments/multi-residential dwellings, Retail and Services, Factories, warehouses, etc.",null,1,"Municipal",2016,null,null,500000,0.2]
[null,null,"KfW","Energy sector program (district heating): Improvement of district heating systems in Pristina","Loan, Grant","Ongoing","Apartments/multi-residential dwellings, Education and Research, Public, government buildings, Tourism, Health care","Heating and Cooling",37,"Municipal",null,null,null,null,90,"Ensure continuous heating for 60,000 inhabitants, public institutions such as the Pristina University Clinic (86,000 m²) and private business such as hotels (which might increase their market value due to increased comfort and lower heating costs)"]
[null,null,"WB","Energy Efficiency and Renewable Energy Project",null,"Ongoing","Public, government buildings",null,15,"National",2017,2022,140,900000,30]
[null,null,null,"EE improvement in public institution buildings at the local level through KEEF","Grant","Planned","Public, government buildings","General improvements",null,"National"]
[null,null,null,"Reliable Energy Landscape Project - financing for residential sector ","Grant","Planned","Apartments/multi-residential dwellings","General improvements",17.600000000000001,"National"]
[]
[]
[null,"Montenegro","GGF","senior loan to the microfinance institution Alter Modus","Loan, Other","Ongoing","Single dwellings, Apartments/multi-residential dwellings, Factories, warehouses, etc.","Doors and windows, Insulation",1.5,"National",2019,null,null,null,null,null,{"$f":"SUM(N43:N50)","v":47050000},{"$f":"SUM(O43:O50)","v":97.633269999999996}]
[null,null,"KfW","Energy Efficiency in Public Buildings, Phase I and II","Loan","Ongoing","Education and Research, Public, government buildings, Health care","Deep renovation",23,"National",2012,2020,33,{"$f":"14.9*1000000","v":14900000}]
[null,null,"WB","Second Energy Efficiency Project (MEEP2)","ESCO, Other","Ongoing","Health care","Deep renovation",6.77,"National",2018,2023,18,23000000,3.2112699999999998]
[null,null,"WB","Energy Efficiency",null,"Finished","Education and Research, Health care",null,8.6,"National",2008,2018,27,150000,60.75]
[null,null,"WB","Montenegro Energy Efficiency Additional Financing",null,"Finished","Health care",null,6.2,"Municipal",2013,null,"12-14"]
[null,null,"KfW","Energy Efficiency in Public Buildings, Phase III","Loan, Grant","Planned","Education and Research, Public, government buildings, Other types of energy-consuming buildings","Doors and windows, Heating and Cooling, Insulation, General improvements, Decentralized RES, Automation, Deep renovation",50,"National",2020,2025,"25-30",9000000,33.671999999999997,"Greater comfort level of users"]
[]
[]
[]
[null,"North Macedonia","GGF","Partnership with Ohridska Banka, Société Générale Group","Loan","Ongoing",null,null,4,"National",2015,null,null,24000000,7500,null,{"$f":"SUM(N52:N65)","v":154413284},{"$f":"SUM(O52:O65)","v":21298.736000000001}]
[null,null,"GGF","HalkBank AD Skopje","Loan",null,"Single dwellings, Apartments/multi-residential dwellings, Retail and Services, Factories, warehouses, etc.","Insulation, Heating and Cooling",15,null,2010,null,null,44290000,13770]
[null,null,"EBRD"," Loan to Procredit Bank ","Loan","Ongoing","Single dwellings, Apartments/multi-residential dwellings","Insulation, Deep renovation",1,"National"]
[null,null,"EBRD","Boosting household energy efficiency through Sparkasse Bank Makedonija","Loan","Ongoing","Single dwellings, Apartments/multi-residential dwellings",null,2,"National",2017]
[null,null,"GGF","Loan to Halkbank Skopje to increase energy efficiency (EE)","Loan, Other","Ongoing","Single dwellings, Apartments/multi-residential dwellings, Factories, warehouses, etc.",null,10,"National",2017,null,null,50000000,15]
[null,null,"GGF","second senior facility in Macedonian Ohridska Banka","Loan, Other","Ongoing",null,null,10,"National",2019,null,null,26330000,7.27]
[null,null,"KfW","Energy-efficient rehabilitation of student dormitories in North Macedonia financed by KfW loan, REEEP+ grant","Loan, Grant","Ongoing","Education and Research, Public, government buildings, Other types of energy-consuming buildings","General improvements, Doors and windows, Heating and Cooling, Insulation, Decentralized RES, Automation, Deep renovation",24.8,"National",2020,2025,17,5905284,2.536,"Significant improvement of the comfort of the students and possible positive spill over effect on the importance of EE measures."]
[null,null,"KfW","Sector program to promote energy efficiency and renewable energies: Construction of a district heating system in the city of Bitola based on the introduction of CHP in Bitola thermal power plant","Loan","Planned","Apartments/multi-residential dwellings","Heating and Cooling",57,"Municipal"]
[null,null,"WB","North Macedonia Public Sector Energy Efficiency Project","Loan, Other","Planned","Public, government buildings",null,26,"Municipal",2019]
[null,null,null,"MoE - PROGRAM FOR PROMOTING RENEWABLE ENERGY SOURCES AND\nENCOURAGEMENT OF ENERGY EFFICIENCY IN HOUSEHOLDS","Grant","Ongoing","Apartments/multi-residential dwellings","Doors and windows, Heating and Cooling, Decentralized RES",5.69,"National",2017,2022,15175,3888000,3.93]
[null,null,null,"Program for EE in City of Skopje for 2018-2020","Other","Ongoing","Transport infrastructure, Public, government buildings","Doors and windows, Heating and Cooling, Insulation, Decentralized RES",2.48,"Municipal",2018,2020]
[null,null,null,"Program for EE renovations in Municipality Karposh ","Other","Ongoing","Apartments/multi-residential dwellings, Public, government buildings","Doors and windows, Heating and Cooling, Insulation, General improvements, Decentralized RES, Deep renovation",0.71,"Municipal",2017,2022]
[null,null,null,"Program for renovation and sanation for the primary schools and kinder garden in municipality Center Skopje ","Other","Planned","Education and Research, Public, government buildings","Doors and windows, Insulation, General improvements, Deep renovation",0.47,"Municipal",2020,2020,10]
[]
[]
[null,"Serbia","GGF","ProCredit Bank","Loan","Ongoing","Apartments/multi-residential dwellings, Factories, warehouses, etc., Single dwellings","Automation",20,"National",2015,null,null,null,null,null,{"$f":"SUM(N67:N76)","v":160100000},{"$f":"SUM(O67:O76)","v":362.25}]
[null,null,"GGF","Čačanska Banka energy efficiency loan","Loan","Ongoing","Single dwellings, Apartments/multi-residential dwellings, Factories, warehouses, etc., Retail and Services","Doors and windows, Heating and Cooling, Insulation",5,"Municipal",2011]
[null,null,"EBRD","UniCredit Bank Serbia ","Loan","Ongoing","Single dwellings, Apartments/multi-residential dwellings","Doors and windows, Heating and Cooling, Insulation, Decentralized RES",5,"National"]
[null,null,"GGF","Long-term loan to Halkbank a.d. Beograd","Loan, Other","Ongoing","Single dwellings, Apartments/multi-residential dwellings",null,5,"National",2017,null,null,43000000,13]
[null,null,"GGF","loan agreement with Komercijalna Banka AD Beograd","Loan",null,"Single dwellings, Apartments/multi-residential dwellings, Retail and Services, Factories, warehouses, etc., Public, government buildings","Heating and Cooling",25,"National",2012,null,null,92000000,30]
[null,null,"GGF","Loan agreement to expand Banca Intesa a.d. Beograd's lending capacity for energy efficiency (EE) projects","Loan",null,"Single dwellings, Apartments/multi-residential dwellings","Doors and windows, Heating and Cooling, Insulation",7,"National",2012,null,null,20000000,6.5]
[null,null,"KfW","Energy efficiency in public buildings: Schools (following the Serbia Energy Efficiency Program financed by the World Bank)","Loan","Ongoing","Education and Research","General improvements",15,null,null,null,30]
[null,null,"KfW","Energy efficiency in public buildings, Phase II: Buildings from the health, education and administration sectors","Loan, Grant","Ongoing","Education and Research, Public, government buildings, Health care","General improvements, Doors and windows, Heating and Cooling, Insulation, Automation, Deep renovation",22.3,"National",2020,2025,"50-60",4000000,8.75,"Greater comfort level of users"]
[null,null,"KfW","Rehabilitation of district heating systems in Serbia (DH operator: Toplanas)","Loan","Planned","Cross sectorial, Other types of energy-consuming buildings","Heating and Cooling",32,"National",2020,2025,null,null,70,"Reduction of heat losses 15 % (on the basis of difference of the primary energy content of the fuel in MWh and the heat delivered at the substations)"]
[null,null,"WB","Enhancing Infrastructure Efficiency and Sustainability Program for Results (P4R)",null,"Ongoing","Public, government buildings",null,40,"National",2017,2021,19,1100000,234]
[null,null,"WB","Energy Efficiency Project (Serbia) Additional Financing",null,"Finished","Public, government buildings, Health care",null,25.6,null,2007,null,96]
[null,null,"KfW","Greening the Public Sector, Energy Efficient Reconstruction of the VMA Hospital, phase I","Grant, Loan","Planned","Health care","Doors and windows, Insulation, Heating and Cooling, General improvements, Decentralized RES, Automation, Deep renovation",82,"National",2020,2025,1,48985000,48.073,"Sustainable and significant reduction of VMA´s energy consumption and reduction of Greenhouse Gas Emissions as well as improvement of the quality of hospital-specific usage requirements through a holistic refurbishment approach."]
[null,null,"KfW","Promotion of Renewable Energies: Developing the Biomass Market in the Republic of Serbia (District Heating), financed by KfW and SECO","Grant, Loan","Ongoing","Cross sectorial, Other types of energy-consuming buildings","Heating and Cooling",27,"National",2017,2024,null,null,null,"Climate\nand environmental protection (Savin\ngs in tons of C02 emissions per year of at least 70% and Savin\ngs of at least 70 % of S02-emissions per year)"]
[]
[]
[]
[null,"Georgia","GGF","Loan to M2 Real Estate ","Loan","Ongoing","Apartments/multi-residential dwellings","Doors and windows, Heating and Cooling, Insulation, Decentralized RES",21,"Municipal",2015,null,1900,8800000,1600,null,{"$f":"SUM(N83:N95)","v":13627630},{"$f":"SUM(O83:O95)","v":47431.91}]
[null,null,"GGF","Senior Loan for Bank of Georgia ","Loan",null,null,null,15,"Municipal",2014]
[null,null,"GGF",null,"Loan","Ongoing","Single dwellings, Apartments/multi-residential dwellings, Retail and Services, Factories, warehouses, etc.","Doors and windows, Heating and Cooling, Insulation",null,"Municipal"]
[null,null,"EBRD","Caucasus Sustainable Energy Financing Facility","Loan","Ongoing","Factories, warehouses, etc., Health care","Insulation, Heating and Cooling, Decentralized RES",100,null,2013,2020,null,227630,45830]
[null,null,"GGF","Senior loan to Bank Republic","Loan","Ongoing","Single dwellings, Apartments/multi-residential dwellings",null,4.5,"National",2016,null,null,2000000,1]
[null,null,"GGF","Senior loan to JSC MFO Crystal (Crystal)","Loan, Other","Ongoing","Single dwellings, Factories, warehouses, etc.","Decentralized RES",1.3,null,2018,null,null,2600000,0.91]
[null,null,"GGF","Loan to Bank of Georgia Group PLC","Loan, Other","Ongoing","Retail and Services, Factories, warehouses, etc.","Decentralized RES",22.8,"National",2019]
[null,null,"NEFCO, E5P","Energy Efficiency Improvements in Public Buildings and Use of Renewables and Alternative Energy in Georgia","Grant, Loan","Ongoing","Public, government buildings","Doors and windows, Heating and Cooling, Insulation, Decentralized RES",4.7,null,2017,null,"25 (70,000m2)",null,null,"Improvement living conditions for public servants, school kids and other users of public buildings and sports"]
[null,null,"Council of Europe Development Bank (CEB), E5P","Energy Efficiency in Public Schools in Tbilisi; also includes seismic retro-fitting measures","Grant, Loan",null,"Education and Research",null,22,null,2015,null,25,null,null,"at least 15 000 school children will benefit"]
[null,null,"KfW","Energy efficiency measures and harmonization with EU energy efficiency standards in buildings: Selected public buildings (most of them kindergardens) in the city of Batumi, Phase I and II","Grant, Loan","Ongoing","Public, government buildings, Education and Research","General improvements",7.5,"Municipal",null,null,null,null,null,"-20% annual energy consumption\n+support urban development of Batumi\n+improve learning and working conditions in those buildings"]
[]
[]
[]
[]
[]
[null,"Moldova","EBRD"," Moldova Residential Energy Efficiency Financing Facility (MoREEFF)","Loan",null,"Single dwellings, Apartments/multi-residential dwellings","Doors and windows, Heating and Cooling, Insulation",7,"National, Municipal",null,null,1800,17000000,3200,null,{"$f":"SUM(N98:N104)","v":356800000},{"$f":"SUM(O98:O104)","v":63903.8}]
[null,null,"EBRD","Moldovan Sustainable Energy Financing Facility - MoSEFF","Loan","Finished","Factories, warehouses, etc.","Doors and windows, Insulation, Decentralized RES",42,"National",2011,2017,null,323000000,60700]
[null,null,"GGF","Senior loan for Microinvest aimed at funding dedicated EE loans for retail and business clients, predominantly micro and small enterprises (MSEs)","Loan",null,"Retail and Services","Doors and windows, Heating and Cooling, Insulation",2,"National",2014,null,null,16800000,3.8]
[null,null,"EBRD, E5P","Chisinau Energy Efficiency financed by EBRD loan, E5P grant","Grant, Loan",null,"Public, government buildings, Apartments/multi-residential dwellings, Health care","Doors and windows, Heating and Cooling, Insulation, General improvements",25.3,null,2016]
[null,null,"EBRD, E5P","Balti District Heating financed by EBRD loan, E5P grant","Grant, Loan","Finished","Apartments/multi-residential dwellings","Heating and Cooling",10,"Municipal",2015,null,null,null,null,"Among other measures: installation of 169 individual heating substations in 130 residential buildings"]
[]
[]
[]
[]
[null,"Ukraine","EBRD"," IQ Energy (Ukrainian Residential EE Financing Facility)","Loan, Grant","Ongoing","Single dwellings, Apartments/multi-residential dwellings","Doors and windows, Heating and Cooling, Insulation, Decentralized RES",75,"National",2016,null,30000,null,null,null,{"$f":"SUM(N107:N125)","v":5400000},{"$f":"SUM(O107:O125)","v":260}]
[null,null,"Other","Among other interventions: Upgrade of heating infrastructures in municipalities (e.g. City of Vinnytsia) under Swiss Cooperation Programme \"Sustainable energy management and urban development\"",null,null,"Apartments/multi-residential dwellings","Heating and Cooling","30 (32 MCHF) for all interventions incl. District heating","Municipal",2015,2018,null,null,null,"Increased energy efficiency and\nimproved urban infrastructure lead\nto better living conditions, sustainable\neconomic development, and\nreduced greenhouse gas emissions."]
[null,null,"NEFCO, E5P, Other","Energy Efficiency Improvement of the District Heating system in Horishni Plavni financed by NEFCO loan, E5P grant and funding from the city of Horishni Plavni","Loan, Grant","Planned","Apartments/multi-residential dwellings","Heating and Cooling","7.72","Municipal",2019]
[null,null,"NEFCO, E5P","“Energy Efficiency in Public Buildings in Lutsk City” financed by NEFCO loan, E5P grant, funding from the city of Lutsk","Grant, Loan","Ongoing","Public, government buildings","Doors and windows, Heating and Cooling, Insulation, General improvements, Automation",7.3,"Municipal",2018]
[null,null,"EIB, E5P","Kryvyi Rih District Heating","Grant, Loan","Ongoing","Apartments/multi-residential dwellings","Heating and Cooling",38,"Municipal",2016,null,null,null,220,"Improved customer service"]
[null,null,"NEFCO, E5P, Other","Nordic Energy Efficiency and Humanitarian Support Initiative – NIU financed by NEFCO, Nordic Environmental Development Fund, E5P","Grant, Loan","Ongoing","Education and Research, Public, government buildings","Doors and windows, Heating and Cooling, Insulation",9,"Municipal",2015]
[null,null,"Other","New energy-efficiency initiative in Ukraine financed by Norway","Grant","Planned","Public, government buildings",null,20,"Municipal",2020]
[null,null,"NEFCO, E5P","Ivano-Frankivsk Energy Efficiency in Public Buildings","Grant, Loan","Ongoing","Public, government buildings",null,8,null,2015]
[null,null,"NEFCO, E5P","Chernivtsi Energy Efficiency in Public Buildings","Grant, Loan","Ongoing","Education and Research","Doors and windows, Heating and Cooling, Insulation, General improvements",9,"Municipal",2015,null,"33 (145.000 m2)",null,"2,7 annually","-53% heat consumption;\n-19% electricity consumption;\n-1.1 million m3 gas consumption annually;\n+ improve the learning environment and class conditions of more than 14,000 pupils"]
[null,null,"EBRD, E5P","Chernivtsi District Heating","Grant, Loan",null,"Apartments/multi-residential dwellings","Heating and Cooling",16,"Municipal",2016,null,null,5400000,null,"saves up to 8,890,000 m3 of natural gas and 5,800 m3 of water each year"]
[null,null,"EBRD, E5P, Other","Lutsk District Heating financed by EBRD loan, CTF loan to the communal enterprise “Lutskteplo”, E5P grant","Grant, Loan",null,"Apartments/multi-residential dwellings","Heating and Cooling",14,"Municipal",2014,null,null,null,null,"benefits 30,000 residential customers or 20% of the City population connected to district heating system"]
[null,null,"NEFCO, E5P","Zhytomyr Energy Efficiency in Public Buildings","Grant, Loan",null,"Public, government buildings",null,4.7,"Municipal",2013]
[null,null,"EBRD, E5P","Zhytomyr District Heating financed","Grant, Loan",null,null,null,16,"Municipal"]
[null,null,"NEFCO, E5P, Other","DemoUkrainaDH financed by NEFCO, Sweden, E5P","Grant, Loan","Finished","Apartments/multi-residential dwellings","Heating and Cooling",18,"Municipal",2012,2019,"20 Projects",null,40,"benefits 50,000 people"]
[null,null,"EBRD","Cherkasy Energy Efficiency Project to reduce gas and electricity consumption and improve the quality of service (client: Municipal District Heating Enterprise \"Cherkasyteplokomunenergo\")","Loan","Finished","Apartments/multi-residential dwellings","Heating and Cooling",10.7,"Municipal",2009,2014,null,null,null,"Savings:\n-30% pipeline leakage;\n-10% gas and electricity consumption"]
[null,null,"EBRD, E5P","Ternopil District Heating","Grant, Loan",null,"Apartments/multi-residential dwellings","Heating and Cooling",15,"Municipal",2012]
[null,null,"EBRD, E5P, Other","Lviv District Heating financed by EBRD, CTF, E5P","Grant, Loan","Ongoing","Apartments/multi-residential dwellings","Heating and Cooling",31,"Municipal",2011]
[null,null,"EBRD, E5P","Energy Efficiency in Public Buildings (Dnipropetrovsk)","Grant, Loan",null,"Public, government buildings",null,12.5,"Municipal",2013]
[null,null,"Other","Energy Efficiency Fund Ukraine receiving grant co-financing from Germany and the EU","Grant","Planned","Apartments/multi-residential dwellings","Deep renovation","100 (in grants)",null,2020,2025,16000]
[null,null,"KfW","Energy Efficiency at Municipalities (German Government BMZ via KfW)","Grant, Loan","Planned","Education and Research, Public, government buildings","Doors and windows, Insulation, Heating and Cooling, General improvements",26.5,"Municipal",2017,2021,40]
[]
[]
[]
[null,"Regional","EBRD","Regional Energy Efficiency Programme (REEP) for the Western Balkans","Grant, Loan","Ongoing",null,null,195.09,null,2013,null,null,53000000,558,null,{"$f":"SUM(N130:N132)","v":53000000},{"$f":"SUM(O130:O132)","v":558}]
[null,null,"EBRD, KfW, EU","Regional Energy Efficiency Programme for the Western Balkans - REEP Plus","Grant, Loan","Ongoing",null,null,207.37799999999999,null,null,null,20000]
[null,null,"GGF","Green for Growth Fund","Loan","Ongoing",null,null,null,null,2009]
[]
[null,"Total Savings of EnC",null,null,null,null,null,null,null,null,null,null,null,null,null,null,{"$f":"SUM(Q7,Q17,Q34,Q43,Q52,Q67,Q83,Q98,Q107,Q130)","v":985990914},{"$f":"SUM(R7,R17,R34,R43,R52,R67,R83,R98,R107,R130)","v":155334.38926999999}]

{"sheet":"Categories","index":1,"n_rows":20,"n_cols":7,"rows_kept":20,"cut":false,"hidden":true,"merged":[]}
[]
[]
[null,"Donors","Buildings","Type of Financing","Status","Level","Type of Intervention"]
[]
[null,"EBRD","Single dwellings","Grant","Planned","Municipal","Doors and windows"]
[null,"WB","Apartments/multi-residential dwellings","Loan","Ongoing","National","Heating and Cooling"]
[null,"EIB","Retail and Services","ESCO","Finished",null,"Insulation"]
[null,"GIZ","Factories, warehouses, etc.","Other",null,null,"General improvements"]
[null,"EU","Transport infrastructure",null,null,null,"Decentralized RES"]
[null,"KfW","Education and Research",null,null,null,"Automation"]
[null,"USAID","Public, government buildings",null,null,null,"Deep renovation"]
[null,"GGF","Cross sectorial"]
[null,"UNDP","Offices"]
[null,"GGGI","Tourism"]
[null,"GCF","Sports / Culture"]
[null,"WBGF","Health care"]
[null,"NEFCO","Other types of energy-consuming buildings"]
[null,"E5P"]
[null,"Council of Europe Development Bank (CEB)"]
[null,"Other"]